[Event "*** Titled Tuesday 3|2 Blitz"]
[Site "Chess.com"]
[Date "2015.11.03"]
[Round "2"]
[White "DeviatkinAndrey"]
[Black "GGuseinov"]
[Result "0-1"]
[WhiteElo "2496"]
[BlackElo "2528"]
[TimeControl "180+2"]
[EndTime "11:21:07 PST"]
[Termination "GGuseinov won by resignation"]

1. d4 {[%clk 0:02:58.5]} 1... Nf6 {[%clk 0:03:00.4]} 2. Nf3 {[%clk 0:02:56.5]}
2... g6 {[%clk 0:03:01.5]} 3. Bg5 {[%clk 0:02:56.3]} 3... Bg7 {[%clk 0:03:02.8]}
4. e3 {[%clk 0:02:56.4]} 4... d6 {[%clk 0:03:04.1]} 5. Nbd2 {[%clk 0:02:56.6]}
5... O-O {[%clk 0:03:05.3]} 6. h3 {[%clk 0:02:57.5]} 6... Nbd7 {[%clk
0:03:06.6]} 7. Bc4 {[%clk 0:02:58.4]} 7... b6 {[%clk 0:03:07.7]} 8. Qe2 {[%clk
0:02:57.2]} 8... Bb7 {[%clk 0:03:08.9]} 9. Ba6 {[%clk 0:02:58]} 9... Qc8 {[%clk
0:03:07.5]} 10. Bxb7 {[%clk 0:02:58.3]} 10... Qxb7 {[%clk 0:03:09.4]} 11. O-O
{[%clk 0:02:59.2]} 11... Rfe8 {[%clk 0:03:09.4]} 12. Rfd1 {[%clk 0:02:04.8]}
12... e5 {[%clk 0:03:09.9]} 13. dxe5 {[%clk 0:02:05.7]} 13... dxe5 {[%clk
0:03:05.2]} 14. e4 {[%clk 0:01:57.5]} 14... Nh5 {[%clk 0:03:03.8]} 15. Be3
{[%clk 0:01:43.9]} 15... Nf8 {[%clk 0:03:04.6]} 16. c3 {[%clk 0:01:28.8]} 16...
Ne6 {[%clk 0:03:05.6]} 17. g3 {[%clk 0:01:30.2]} 17... h6 {[%clk 0:02:58.1]} 18.
Nh2 {[%clk 0:01:29.3]} 18... c5 {[%clk 0:02:47]} 19. Nc4 {[%clk 0:01:21.9]}
19... Qxe4 {[%clk 0:02:33]} 20. Nd6 {[%clk 0:01:22]} 20... Qc6 {[%clk
0:02:33.9]} 21. Nxe8 {[%clk 0:01:22.3]} 21... Rxe8 {[%clk 0:02:35.6]} 22. Qd3
{[%clk 0:01:07.5]} 22... Nhf4 {[%clk 0:02:07.4]} 23. gxf4 {[%clk 0:01:05.2]}
23... exf4 {[%clk 0:02:08.9]} 24. Bd2 {[%clk 0:00:38.5]} 24... c4 {[%clk
0:01:53.2]} 25. Qf3 {[%clk 0:00:39]} 25... Qb5 {[%clk 0:01:54.6]} 26. Bxf4
{[%clk 0:00:38.7]} 26... Qxb2 {[%clk 0:01:55.7]} 27. Ng4 {[%clk 0:00:32.2]}
27... Qxc3 {[%clk 0:01:51.2]} 28. Nxh6+ {[%clk 0:00:31.7]} 28... Kh7 {[%clk
0:01:48.8]} 29. Qxc3 {[%clk 0:00:30.7]} 29... Bxc3 {[%clk 0:01:50.4]} 30. Rac1
{[%clk 0:00:32.3]} 30... Nxf4 {[%clk 0:01:51.6]} 31. Kf1 {[%clk 0:00:30.4]}
31... Kxh6 {[%clk 0:01:40.5]} 32. Rxc3 {[%clk 0:00:31]} 32... b5 {[%clk
0:01:42]} 33. Rf3 {[%clk 0:00:24.9]} 33... g5 {[%clk 0:01:39.9]} 34. h4 {[%clk
0:00:25.5]} 34... f6 {[%clk 0:01:33.5]} 35. hxg5+ {[%clk 0:00:26.4]} 35... fxg5
{[%clk 0:01:33.6]} 36. Rd6+ {[%clk 0:00:23]} 36... Kh5 {[%clk 0:01:35]} 37. Ra6
{[%clk 0:00:24]} 37... Rd8 {[%clk 0:01:30.7]} 38. Ke1 {[%clk 0:00:24.8]} 38...
Nd3+ {[%clk 0:01:23.9]} 39. Kf1 {[%clk 0:00:23.6]} 39... c3 {[%clk 0:01:19.5]}
40. Rc6 {[%clk 0:00:21.7]} 40... b4 {[%clk 0:01:19.9]} 41. Rff6 {[%clk
0:00:14.8]} 41... Nf4 {[%clk 0:01:15.7]} 42. f3 {[%clk 0:00:14.9]} 42... Kh4
{[%clk 0:01:09.4]} 43. Kf2 {[%clk 0:00:16.2]} 43... Rd2+ {[%clk 0:01:08.9]} 44.
Ke3 {[%clk 0:00:17.6]} 44... Nd5+ {[%clk 0:01:08.3]} 0-1

[Event "*** Titled Tuesday 3|2 Blitz"]
[Site "Chess.com"]
[Date "2015.11.03"]
[Round "2"]
[White "metalbattler"]
[Black "jcgs1030"]
[Result "0-1"]
[WhiteElo "1929"]
[BlackElo "2194"]
[TimeControl "180+2"]
[EndTime "11:21:07 PST"]
[Termination "jcgs1030 won by resignation"]

1. e4 {[%clk 0:03:01.9]} 1... c5 {[%clk 0:03:00.4]} 2. Nc3 {[%clk 0:03:02.4]}
2... d6 {[%clk 0:02:59.6]} 3. f4 {[%clk 0:03:03.1]} 3... g6 {[%clk 0:02:59.1]}
4. Nf3 {[%clk 0:03:03.7]} 4... Bg7 {[%clk 0:02:56.7]} 5. Bb5+ {[%clk 0:03:03.6]}
5... Bd7 {[%clk 0:02:55.7]} 6. Bc4 {[%clk 0:03:04.7]} 6... Bc6 {[%clk
0:02:53.3]} 7. d3 {[%clk 0:03:05.1]} 7... Nd7 {[%clk 0:02:53.5]} 8. O-O {[%clk
0:03:05]} 8... Ngf6 {[%clk 0:02:54.4]} 9. Qe1 {[%clk 0:03:05.6]} 9... O-O {[%clk
0:02:55.6]} 10. Qh4 {[%clk 0:03:05.4]} 10... a6 {[%clk 0:02:52]} 11. f5 {[%clk
0:02:58.2]} 11... b5 {[%clk 0:02:50.1]} 12. Bb3 {[%clk 0:02:58.8]} 12... b4
{[%clk 0:02:45.6]} 13. Ne2 {[%clk 0:02:33.9]} 13... a5 {[%clk 0:02:41.7]} 14. a4
{[%clk 0:02:31]} 14... bxa3 {[%clk 0:02:40.7]} 15. Rxa3 {[%clk 0:02:30.4]} 15...
a4 {[%clk 0:02:41.9]} 16. Ba2 {[%clk 0:02:15.8]} 16... Qb8 {[%clk 0:02:16.4]}
17. fxg6 {[%clk 0:02:08]} 17... hxg6 {[%clk 0:02:11.5]} 18. Nc3 {[%clk
0:01:16.6]} 18... e6 {[%clk 0:01:45.5]} 19. Ng5 {[%clk 0:00:59.5]} 19... d5
{[%clk 0:01:42.3]} 20. exd5 {[%clk 0:00:51.1]} 20... exd5 {[%clk 0:01:42.2]} 21.
Nxd5 {[%clk 0:00:48.1]} 21... Bxd5 {[%clk 0:01:37.9]} 22. Bxd5 {[%clk
0:00:48.9]} 22... Qb4 {[%clk 0:01:27]} 23. Rf4 {[%clk 0:00:29.6]} 23... Qb6
{[%clk 0:01:15.1]} 24. Bxa8 {[%clk 0:00:29.3]} 24... Rxa8 {[%clk 0:01:15.4]} 25.
Qf2 {[%clk 0:00:29.4]} 25... Ne5 {[%clk 0:01:09.4]} 26. Ne4 {[%clk 0:00:29.3]}
26... Nd5 {[%clk 0:01:08.1]} 27. Rh4 {[%clk 0:00:26.9]} 27... Re8 {[%clk
0:00:46.7]} 28. Nc3 {[%clk 0:00:27.1]} 28... Nb4 {[%clk 0:00:43.4]} 29. Nxa4
{[%clk 0:00:17.2]} 29... Qd8 {[%clk 0:00:31]} 30. Nxc5 {[%clk 0:00:17.6]} 30...
Nxc2 {[%clk 0:00:26.8]} 31. Rc3 {[%clk 0:00:11.3]} 31... Ne1 {[%clk 0:00:25.4]}
32. Qxe1 {[%clk 0:00:11.9]} 32... Nf3+ {[%clk 0:00:25.3]} 33. gxf3 {[%clk
0:00:13.7]} 33... Rxe1+ {[%clk 0:00:26.6]} 34. Kf2 {[%clk 0:00:15.2]} 34...
Qxh4+ {[%clk 0:00:27.9]} 35. Kg2 {[%clk 0:00:15.7]} 35... Re2+ {[%clk
0:00:29.3]} 0-1

[Event "*** Titled Tuesday 3|2 Blitz"]
[Site "Chess.com"]
[Date "2015.11.03"]
[Round "2"]
[White "Makalexa"]
[Black "saraswathii"]
[Result "1-0"]
[WhiteElo "2123"]
[BlackElo "1925"]
[TimeControl "180+2"]
[EndTime "11:21:25 PST"]
[Termination "Makalexa won by resignation"]

1. e4 {[%clk 0:02:57]} 1... c5 {[%clk 0:02:59.6]} 2. Nf3 {[%clk 0:02:57.5]} 2...
e6 {[%clk 0:02:59.1]} 3. d4 {[%clk 0:02:58.2]} 3... cxd4 {[%clk 0:02:59.3]} 4.
Nxd4 {[%clk 0:03:00.1]} 4... Nf6 {[%clk 0:02:59.4]} 5. Nc3 {[%clk 0:02:59.3]}
5... Nc6 {[%clk 0:02:54.9]} 6. Nxc6 {[%clk 0:02:57.7]} 6... bxc6 {[%clk
0:02:54.9]} 7. e5 {[%clk 0:02:58.6]} 7... Nd5 {[%clk 0:02:54.9]} 8. Ne4 {[%clk
0:02:57.4]} 8... f5 {[%clk 0:02:54.5]} 9. Nd6+ {[%clk 0:02:39]} 9... Bxd6 {[%clk
0:02:52.1]} 10. exd6 {[%clk 0:02:40.9]} 10... O-O {[%clk 0:02:42.8]} 11. Bc4
{[%clk 0:02:38.6]} 11... Qa5+ {[%clk 0:02:37.1]} 12. Bd2 {[%clk 0:02:34.4]}
12... Qc5 {[%clk 0:02:37.6]} 13. Bxd5 {[%clk 0:02:34]} 13... cxd5 {[%clk
0:02:37.6]} 14. Bf4 {[%clk 0:02:17.5]} 14... Qb4+ {[%clk 0:02:22.1]} 15. Qd2
{[%clk 0:02:18.2]} 15... Qe4+ {[%clk 0:02:19.7]} 16. Kf1 {[%clk 0:02:13.8]}
16... Ba6+ {[%clk 0:02:19.2]} 17. Kg1 {[%clk 0:02:14]} 17... e5 {[%clk
0:02:18.5]} 18. Bg5 {[%clk 0:02:08.2]} 18... d4 {[%clk 0:02:08.4]} 19. Be7
{[%clk 0:02:04]} 19... Rfc8 {[%clk 0:02:01.7]} 20. Rc1 {[%clk 0:01:47]} 20...
Qd5 {[%clk 0:01:43.1]} 21. h4 {[%clk 0:01:36.3]} 21... Qxa2 {[%clk 0:01:32.9]}
22. Qg5 {[%clk 0:01:32.4]} 22... Qf7 {[%clk 0:01:26.9]} 23. Rh3 {[%clk
0:01:29.6]} 23... Kh8 {[%clk 0:01:10.7]} 24. h5 {[%clk 0:01:29.4]} 24... h6
{[%clk 0:01:07]} 25. Qh4 {[%clk 0:01:26.9]} 25... Rab8 {[%clk 0:00:54.7]} 26.
Re1 {[%clk 0:01:13.5]} 26... e4 {[%clk 0:00:43.9]} 27. g4 {[%clk 0:01:08.7]}
27... f4 {[%clk 0:00:26.1]} 28. g5 {[%clk 0:01:08.7]} 28... Rxc2 {[%clk
0:00:18.8]} 29. gxh6 {[%clk 0:01:07.6]} 29... gxh6 {[%clk 0:00:19.2]} 30. Bf6+
{[%clk 0:00:57.9]} 30... Kh7 {[%clk 0:00:20]} 31. Qxf4 {[%clk 0:00:58.2]} 31...
Rg8+ {[%clk 0:00:19.8]} 32. Kh2 {[%clk 0:00:54.6]} 32... Bd3 {[%clk 0:00:15.4]}
33. Qf5+ {[%clk 0:00:51.2]} 33... Rg6 {[%clk 0:00:12.7]} 34. hxg6+ {[%clk
0:00:51.5]} 34... Qxg6 {[%clk 0:00:14.6]} 35. Qxd7+ {[%clk 0:00:49.3]} 35... Kg8
{[%clk 0:00:14.3]} 36. Rg3 {[%clk 0:00:47.8]} 36... Rxf2+ {[%clk 0:00:14.7]} 37.
Kh3 {[%clk 0:00:46.5]} 37... Rf3 {[%clk 0:00:13.5]} 38. Rg1 {[%clk 0:00:44]}
38... e3 {[%clk 0:00:11.7]} 39. Qe8+ {[%clk 0:00:31.6]} 1-0

[Event "*** Titled Tuesday 3|2 Blitz"]
[Site "Chess.com"]
[Date "2015.11.03"]
[Round "2"]
[White "Nutflush"]
[Black "ilmago"]
[Result "0-1"]
[WhiteElo "1911"]
[BlackElo "1909"]
[TimeControl "180+2"]
[EndTime "11:21:38 PST"]
[Termination "ilmago won by resignation"]

1. e4 {[%clk 0:03:01.9]} 1... c5 {[%clk 0:03:00.1]} 2. c3 {[%clk 0:03:01.8]}
2... Nf6 {[%clk 0:02:56.4]} 3. e5 {[%clk 0:03:02.4]} 3... Nd5 {[%clk 0:02:57.9]}
4. d4 {[%clk 0:03:04.3]} 4... cxd4 {[%clk 0:02:56.7]} 5. cxd4 {[%clk 0:03:06.2]}
5... e6 {[%clk 0:02:57.1]} 6. Nf3 {[%clk 0:03:07.5]} 6... Nc6 {[%clk 0:02:57.6]}
7. Bc4 {[%clk 0:03:08.6]} 7... Nb6 {[%clk 0:02:57.7]} 8. Bd3 {[%clk 0:03:07.2]}
8... d6 {[%clk 0:02:58.8]} 9. O-O {[%clk 0:03:07.7]} 9... dxe5 {[%clk
0:02:54.5]} 10. dxe5 {[%clk 0:03:09.6]} 10... Bd7 {[%clk 0:02:51.1]} 11. Nc3
{[%clk 0:03:08]} 11... Nb4 {[%clk 0:02:49.2]} 12. Be4 {[%clk 0:03:06]} 12... Bc6
{[%clk 0:02:48.7]} 13. Qe2 {[%clk 0:02:56.1]} 13... N4d5 {[%clk 0:02:39.6]} 14.
Bg5 {[%clk 0:02:48.5]} 14... Qc7 {[%clk 0:02:38.7]} 15. Rac1 {[%clk 0:02:44.4]}
15... Rc8 {[%clk 0:02:33.3]} 16. Nb5 {[%clk 0:02:24]} 16... Qb8 {[%clk
0:02:27.3]} 17. Nbd4 {[%clk 0:02:18.7]} 17... Be7 {[%clk 0:02:18.5]} 18. Nxc6
{[%clk 0:02:14.7]} 18... Rxc6 {[%clk 0:02:18.9]} 19. Bxe7 {[%clk 0:02:01.8]}
19... Kxe7 {[%clk 0:02:17.5]} 20. Rxc6 {[%clk 0:01:56.1]} 20... bxc6 {[%clk
0:02:17.9]} 21. Nd4 {[%clk 0:01:53.8]} 21... Qc7 {[%clk 0:01:47.2]} 22. f4
{[%clk 0:01:48.8]} 22... g6 {[%clk 0:01:38]} 23. Rc1 {[%clk 0:01:46.5]} 23... c5
{[%clk 0:01:33.2]} 24. Nb5 {[%clk 0:01:39.8]} 24... Nxf4 {[%clk 0:01:22]} 25.
Qe3 {[%clk 0:01:34.2]} 25... Qxe5 {[%clk 0:01:06.9]} 26. Rxc5 {[%clk 0:01:33.9]}
26... Nbd5 {[%clk 0:00:52.9]} 27. Qa3 {[%clk 0:01:20.3]} 27... Kf6 {[%clk
0:00:29.6]} 28. Nc3 {[%clk 0:00:54.3]} 28... Ne2+ {[%clk 0:00:26.5]} 29. Nxe2
{[%clk 0:00:44.9]} 29... Qxe4 {[%clk 0:00:27.4]} 30. Qa6 {[%clk 0:00:31.9]}
30... Qe3+ {[%clk 0:00:15.7]} 31. Kf1 {[%clk 0:00:31.9]} 31... Qxc5 {[%clk
0:00:16.2]} 32. Qd3 {[%clk 0:00:32.6]} 32... Ne3+ {[%clk 0:00:14.9]} 33. Ke1
{[%clk 0:00:32.5]} 33... Nxg2+ {[%clk 0:00:15.8]} 34. Kf1 {[%clk 0:00:32.8]}
34... Ne3+ {[%clk 0:00:16.4]} 35. Ke1 {[%clk 0:00:33.8]} 35... Kg7 {[%clk
0:00:15]} 36. Nc3 {[%clk 0:00:32.3]} 36... Rc8 {[%clk 0:00:13.8]} 37. Qe4 {[%clk
0:00:32]} 37... Nf5 {[%clk 0:00:13.2]} 38. h4 {[%clk 0:00:31.6]} 38... Qe3+
{[%clk 0:00:14.2]} 39. Qxe3 {[%clk 0:00:31.7]} 39... Nxe3 {[%clk 0:00:15.7]} 40.
Ke2 {[%clk 0:00:33.3]} 40... Nf5 {[%clk 0:00:17]} 0-1

[Event "*** Titled Tuesday 3|2 Blitz"]
[Site "Chess.com"]
[Date "2015.11.03"]
[Round "2"]
[White "Rickstereo"]
[Black "eltenedor"]
[Result "1-0"]
[WhiteElo "2096"]
[BlackElo "1945"]
[TimeControl "180+2"]
[EndTime "11:21:44 PST"]
[Termination "Rickstereo won by checkmate"]

1. d4 {[%clk 0:03:01.4]} 1... d5 {[%clk 0:03:00]} 2. c4 {[%clk 0:03:02.2]} 2...
dxc4 {[%clk 0:03:00.7]} 3. e3 {[%clk 0:03:01.3]} 3... Nf6 {[%clk 0:03:01.5]} 4.
Bxc4 {[%clk 0:03:01.7]} 4... e6 {[%clk 0:03:02.7]} 5. Nf3 {[%clk 0:03:02.8]}
5... c5 {[%clk 0:03:03.4]} 6. O-O {[%clk 0:03:03.1]} 6... a6 {[%clk 0:03:03.9]}
7. Bd3 {[%clk 0:03:03.6]} 7... Nc6 {[%clk 0:03:01.9]} 8. Nc3 {[%clk 0:02:59.6]}
8... Qc7 {[%clk 0:02:51.3]} 9. Bd2 {[%clk 0:02:47.9]} 9... Bd6 {[%clk
0:02:32.8]} 10. Rc1 {[%clk 0:02:46.1]} 10... cxd4 {[%clk 0:02:30.6]} 11. exd4
{[%clk 0:02:42.4]} 11... O-O {[%clk 0:02:25.3]} 12. h3 {[%clk 0:02:36.4]} 12...
Bd7 {[%clk 0:02:16.4]} 13. Qe2 {[%clk 0:02:34.2]} 13... Bf4 {[%clk 0:02:06.4]}
14. Ne4 {[%clk 0:02:23.1]} 14... Nd5 {[%clk 0:01:54.6]} 15. Nc5 {[%clk
0:02:20.3]} 15... Bxd2 {[%clk 0:01:46.5]} 16. Qxd2 {[%clk 0:02:13.8]} 16... Rfd8
{[%clk 0:01:25.6]} 17. Rfe1 {[%clk 0:01:48.4]} 17... Be8 {[%clk 0:01:18]} 18.
Ng5 {[%clk 0:01:44.1]} 18... h6 {[%clk 0:01:05.2]} 19. Ngxe6 {[%clk 0:01:22.4]}
19... fxe6 {[%clk 0:01:05.3]} 20. Nxe6 {[%clk 0:01:23.5]} 20... Qd7 {[%clk
0:00:44.7]} 21. Nxd8 {[%clk 0:01:07.2]} 21... Rxd8 {[%clk 0:00:46.6]} 22. Bc4
{[%clk 0:01:02.5]} 22... Bf7 {[%clk 0:00:46]} 23. Rcd1 {[%clk 0:00:59.4]} 23...
b5 {[%clk 0:00:43.6]} 24. Bb3 {[%clk 0:00:57.5]} 24... a5 {[%clk 0:00:40.5]} 25.
a3 {[%clk 0:00:58.1]} 25... a4 {[%clk 0:00:38.5]} 26. Ba2 {[%clk 0:00:59.1]}
26... Rf8 {[%clk 0:00:18]} 27. Qd3 {[%clk 0:00:51.6]} 27... Na5 {[%clk
0:00:16.6]} 28. Re5 {[%clk 0:00:46.3]} 28... Nb3 {[%clk 0:00:13.3]} 29. Bb1
{[%clk 0:00:42.2]} 29... g6 {[%clk 0:00:07.3]} 30. Rde1 {[%clk 0:00:36.7]} 30...
Kg7 {[%clk 0:00:07.8]} 31. h4 {[%clk 0:00:25.2]} 31... Nf4 {[%clk 0:00:08.1]}
32. Qg3 {[%clk 0:00:24]} 32... Nh5 {[%clk 0:00:06.7]} 33. Rxh5 {[%clk
0:00:17.7]} 33... Nxd4 {[%clk 0:00:06.9]} 34. Rhe5 {[%clk 0:00:15.6]} 34... Rg8
{[%clk 0:00:06.1]} 35. h5 {[%clk 0:00:15.9]} 35... g5 {[%clk 0:00:06.4]} 36. Qd3
{[%clk 0:00:16.9]} 36... Rh8 {[%clk 0:00:04.1]} 37. Re7 {[%clk 0:00:16.4]} 37...
Qd5 {[%clk 0:00:02.7]} 38. Qg6+ {[%clk 0:00:17.1]} 38... Kf8 {[%clk 0:00:02.9]}
39. Re8+ {[%clk 0:00:18]} 39... Bxe8 {[%clk 0:00:03.2]} 40. Rxe8# {[%clk
0:00:19]} 1-0

[Event "*** Titled Tuesday 3|2 Blitz"]
[Site "Chess.com"]
[Date "2015.11.03"]
[Round "2"]
[White "Chopper1905"]
[Black "pKiLz5Rn9b"]
[Result "1-0"]
[WhiteElo "2537"]
[BlackElo "2447"]
[TimeControl "180+2"]
[EndTime "11:22:04 PST"]
[Termination "Chopper1905 won by resignation"]

1. c4 {[%clk 0:02:59.8]} 1... e6 {[%clk 0:03:00.9]} 2. Nf3 {[%clk 0:03:00.4]}
2... Nf6 {[%clk 0:03:01.8]} 3. Nc3 {[%clk 0:03:00.9]} 3... Nc6 {[%clk 0:03:02]}
4. d4 {[%clk 0:02:57]} 4... Bb4 {[%clk 0:03:01.9]} 5. Qc2 {[%clk 0:02:57.8]}
5... d6 {[%clk 0:03:02.6]} 6. a3 {[%clk 0:02:55.1]} 6... Bxc3+ {[%clk
0:03:03.5]} 7. Qxc3 {[%clk 0:02:57]} 7... O-O {[%clk 0:03:05.4]} 8. g3 {[%clk
0:02:57.7]} 8... Re8 {[%clk 0:03:06.2]} 9. Bg2 {[%clk 0:02:58.6]} 9... e5 {[%clk
0:03:07.7]} 10. d5 {[%clk 0:02:59.6]} 10... Nb8 {[%clk 0:03:09.1]} 11. O-O
{[%clk 0:03:00.4]} 11... a5 {[%clk 0:03:10.3]} 12. b4 {[%clk 0:02:59.3]} 12...
c6 {[%clk 0:03:02]} 13. dxc6 {[%clk 0:02:56.2]} 13... bxc6 {[%clk 0:02:41]} 14.
Rd1 {[%clk 0:02:51.5]} 14... Qc7 {[%clk 0:02:41.5]} 15. Bb2 {[%clk 0:02:46.5]}
15... c5 {[%clk 0:02:36.7]} 16. bxc5 {[%clk 0:02:43.1]} 16... Qxc5 {[%clk
0:02:34.3]} 17. Nxe5 {[%clk 0:02:37.8]} 17... Ra6 {[%clk 0:02:27.7]} 18. Nd3
{[%clk 0:02:36]} 18... Qc7 {[%clk 0:02:28.4]} 19. Nf4 {[%clk 0:02:32]} 19...
Nbd7 {[%clk 0:02:29.2]} 20. Nd5 {[%clk 0:02:30.3]} 20... Qc5 {[%clk 0:02:30.3]}
21. Bh3 {[%clk 0:02:20.5]} 21... Ne5 {[%clk 0:02:22.8]} 22. Nxf6+ {[%clk
0:02:11.5]} 22... gxf6 {[%clk 0:02:24.7]} 23. Bxc8 {[%clk 0:02:03.9]} 23... Rxc8
{[%clk 0:02:26.6]} 24. Rac1 {[%clk 0:01:56.4]} 24... Rac6 {[%clk 0:02:17.7]} 25.
Qd2 {[%clk 0:01:45.3]} 25... Qb6 {[%clk 0:02:06.9]} 26. Bd4 {[%clk 0:01:37.2]}
26... Qd8 {[%clk 0:02:03.4]} 27. Qh6 {[%clk 0:01:33.9]} 27... Qe7 {[%clk
0:01:54.5]} 28. Rc3 {[%clk 0:01:16.3]} 28... Rxc4 {[%clk 0:01:48.8]} 29. Rxc4
{[%clk 0:01:10]} 29... Rxc4 {[%clk 0:01:50.1]} 30. Bxe5 {[%clk 0:01:06.4]} 30...
dxe5 {[%clk 0:01:51.1]} 31. Rd5 {[%clk 0:00:57.6]} 31... a4 {[%clk 0:01:21.4]}
32. Ra5 {[%clk 0:00:56.2]} 32... Rc8 {[%clk 0:01:19.4]} 33. Rxa4 {[%clk
0:00:49.7]} 33... Qd7 {[%clk 0:01:20.1]} 34. Rh4 {[%clk 0:00:47.5]} 34... Qf5
{[%clk 0:01:05.3]} 35. Kg2 {[%clk 0:00:40]} 35... Rc2 {[%clk 0:00:46]} 36. h3
{[%clk 0:00:36.8]} 36... Rxe2 {[%clk 0:00:15.2]} 37. Rg4+ {[%clk 0:00:27.3]}
37... Qg6 {[%clk 0:00:17.1]} 38. Rxg6+ {[%clk 0:00:26.9]} 38... hxg6 {[%clk
0:00:19]} 39. Qc1 {[%clk 0:00:26.9]} 39... Ra2 {[%clk 0:00:20.3]} 40. Qc3 {[%clk
0:00:27.3]} 40... Kg7 {[%clk 0:00:21.2]} 41. Qb3 {[%clk 0:00:28.6]} 41... Ra1
{[%clk 0:00:22]} 42. a4 {[%clk 0:00:30]} 42... g5 {[%clk 0:00:23.9]} 43. Qb5
{[%clk 0:00:29.7]} 43... e4 {[%clk 0:00:24.8]} 44. a5 {[%clk 0:00:31]} 44... Ra2
{[%clk 0:00:25.8]} 45. Kf1 {[%clk 0:00:28.6]} 45... Ra1+ {[%clk 0:00:26.5]} 46.
Ke2 {[%clk 0:00:29.9]} 46... Kg6 {[%clk 0:00:27.8]} 47. a6 {[%clk 0:00:30.7]}
47... f5 {[%clk 0:00:27.3]} 48. Qb6+ {[%clk 0:00:30]} 48... f6 {[%clk
0:00:28.4]} 49. a7 {[%clk 0:00:31.5]} 49... Ra2+ {[%clk 0:00:30.3]} 50. Ke3
{[%clk 0:00:31.4]} 50... Ra3+ {[%clk 0:00:28]} 51. Kd4 {[%clk 0:00:32.1]} 51...
Ra4+ {[%clk 0:00:29.2]} 52. Kc5 {[%clk 0:00:32.8]} 52... e3 {[%clk 0:00:31.1]}
53. fxe3 {[%clk 0:00:33.4]} 1-0

[Event "*** Titled Tuesday 3|2 Blitz"]
[Site "Chess.com"]
[Date "2015.11.03"]
[Round "2"]
[White "Entilza"]
[Black "AndrewMcStone"]
[Result "1-0"]
[WhiteElo "2044"]
[BlackElo "1994"]
[TimeControl "180+2"]
[EndTime "11:22:22 PST"]
[Termination "Entilza won by checkmate"]

1. d4 {[%clk 0:02:29.7]} 1... e6 {[%clk 0:03:00]} 2. c4 {[%clk 0:02:28.6]} 2...
f5 {[%clk 0:03:01.1]} 3. Nf3 {[%clk 0:02:23.3]} 3... Nf6 {[%clk 0:02:51.8]} 4.
g3 {[%clk 0:02:23.2]} 4... d6 {[%clk 0:02:50.1]} 5. Bg2 {[%clk 0:02:25.1]} 5...
Be7 {[%clk 0:02:50.9]} 6. O-O {[%clk 0:02:21.5]} 6... O-O {[%clk 0:02:52.2]} 7.
b4 {[%clk 0:02:21.9]} 7... a5 {[%clk 0:02:51.7]} 8. bxa5 {[%clk 0:02:19.3]} 8...
Rxa5 {[%clk 0:02:11.2]} 9. Nbd2 {[%clk 0:02:14.4]} 9... Ne4 {[%clk 0:01:57.7]}
10. Nb3 {[%clk 0:02:10.9]} 10... Ra8 {[%clk 0:01:50.3]} 11. Bb2 {[%clk
0:02:04.8]} 11... Qe8 {[%clk 0:01:37.6]} 12. Nfd2 {[%clk 0:01:55.7]} 12... Qg6
{[%clk 0:01:24]} 13. Nxe4 {[%clk 0:01:52.1]} 13... fxe4 {[%clk 0:01:24.7]} 14.
Qc2 {[%clk 0:01:40.9]} 14... d5 {[%clk 0:00:53.5]} 15. cxd5 {[%clk 0:01:37.5]}
15... exd5 {[%clk 0:00:55.4]} 16. Qxc7 {[%clk 0:01:37.5]} 16... Bd6 {[%clk
0:00:56.6]} 17. Qc2 {[%clk 0:01:30.6]} 17... Nc6 {[%clk 0:00:46.2]} 18. f3
{[%clk 0:01:26.7]} 18... Bf5 {[%clk 0:00:45.6]} 19. Qd2 {[%clk 0:01:16.9]} 19...
Rae8 {[%clk 0:00:18.4]} 20. Nc5 {[%clk 0:01:14.4]} 20... h5 {[%clk 0:00:16.1]}
21. fxe4 {[%clk 0:01:13.2]} 21... Bxe4 {[%clk 0:00:14.6]} 22. Nxe4 {[%clk
0:01:11.8]} 22... dxe4 {[%clk 0:00:14.8]} 23. e3 {[%clk 0:01:10.9]} 23... h4
{[%clk 0:00:12.4]} 24. gxh4 {[%clk 0:01:06.1]} 24... Nb4 {[%clk 0:00:10.2]} 25.
Rxf8+ {[%clk 0:00:54.5]} 25... Rxf8 {[%clk 0:00:10.8]} 26. Rf1 {[%clk
0:00:56.4]} 26... Rf3 {[%clk 0:00:11.3]} 27. Qe2 {[%clk 0:00:55.8]} 27... Nc6
{[%clk 0:00:06.7]} 28. Rxf3 {[%clk 0:00:56.1]} 28... exf3 {[%clk 0:00:07.9]} 29.
Qxf3 {[%clk 0:00:55.4]} 29... Qb1+ {[%clk 0:00:09.5]} 30. Qf1 {[%clk 0:00:55.1]}
30... Qxb2 {[%clk 0:00:10.7]} 31. Qc4+ {[%clk 0:00:55.1]} 31... Kh8 {[%clk
0:00:10.2]} 32. Qe6 {[%clk 0:00:50.3]} 32... Qc1+ {[%clk 0:00:08.1]} 33. Kf2
{[%clk 0:00:49.9]} 33... Qd2+ {[%clk 0:00:08.9]} 34. Kf1 {[%clk 0:00:50.6]}
34... Qd1+ {[%clk 0:00:08.8]} 35. Kf2 {[%clk 0:00:50.1]} 35... Qd2+ {[%clk
0:00:10]} 36. Kf1 {[%clk 0:00:50.4]} 36... Qd1+ {[%clk 0:00:11.2]} 37. Kf2
{[%clk 0:00:51.2]} 37... Qd2+ {[%clk 0:00:12.3]} 38. Kf3 {[%clk 0:00:51.6]}
38... Qd3 {[%clk 0:00:07.6]} 39. Qxd6 {[%clk 0:00:50.1]} 39... Qf5+ {[%clk
0:00:07.7]} 40. Qf4 {[%clk 0:00:49.6]} 40... Qd5+ {[%clk 0:00:08.7]} 41. Kg3
{[%clk 0:00:49.2]} 41... Qxa2 {[%clk 0:00:09.4]} 42. Be4 {[%clk 0:00:47.3]}
42... Qe2 {[%clk 0:00:07.5]} 43. Qf8# {[%clk 0:00:45.5]} 1-0